bitfinex-derivatives/quotes_BTCF0:USTF0_20250814
["timestamp","ask_amount","ask_price","bid_price","bid_amount"]
[1755210227138,4.83901002,118240.0,118230.0,3.38455207]
[1755210227740,4.80043002,118240.0,118230.0,2.57871207]
[1755210227934,4.80043002,118240.0,118230.0,3.38447207]
[1755210228134,4.80043002,118240.0,118230.0,2.97974729]
[1755210228340,4.80043002,118240.0,118230.0,3.38447207]
[1755210229040,4.80043002,118240.0,118230.0,3.53647873]
[1755210229444,4.77891552,118240.0,118230.0,3.53647873]
[1755210230944,4.59105552,118240.0,118230.0,3.53647873]
[1755210231335,4.59105552,118240.0,118230.0,3.13175395]
[1755210231532,4.59105552,118240.0,118230.0,3.53647873]
[1755210232335,4.43127367,118240.0,118230.0,3.53647873]
[1755210233645,4.31882367,118240.0,118230.0,3.53647873]
[1755210234145,4.24018367,118240.0,118230.0,3.53647873]
[1755210234542,4.1445341,118240.0,118230.0,3.53647873]
[1755210234739,4.0850641,118240.0,118230.0,3.38447207]
[1755210235137,3.90550691,118240.0,118230.0,3.38447207]
[1755210235339,3.80829691,118240.0,118230.0,3.38447207]
[1755210235545,3.79151691,118240.0,118230.0,3.38447207]
[1755210235742,3.79151691,118240.0,118230.0,3.53468037]
[1755210235942,3.69997691,118240.0,118230.0,3.53468037]
[1755210236244,3.25477543,118240.0,118230.0,3.53468037]
[1755210236444,3.24377543,118240.0,118230.0,3.53468037]
[1755210236746,3.24377543,118240.0,118230.0,3.93940515]
[1755210237049,3.24377543,118240.0,118230.0,3.53468037]
[1755210237442,3.22685212,118240.0,118230.0,3.38447207]
[1755210238244,3.22685212,118240.0,118230.0,3.38389277]
[1755210238841,3.11793212,118240.0,118230.0,3.38389277]
[1755210239148,3.10593212,118240.0,118230.0,3.38389277]
[1755210239349,3.06383212,118240.0,118230.0,3.38389277]
[1755210239550,3.04454212,118240.0,118230.0,3.38389277]
[1755210239753,3.04034212,118240.0,118230.0,3.38389277]
[1755210239941,3.03234212,118240.0,118230.0,3.38389277]
[1755210240146,3.02834212,118240.0,118230.0,2.57813277]
[1755210240449,3.02834212,118240.0,118230.0,3.26970277]
[1755210240650,3.02834212,118240.0,118230.0,3.46752679]
[1755210240847,3.02834212,118240.0,118230.0,3.29837479]
[1755210241045,3.02834212,118240.0,118230.0,3.29833479]
[1755210241246,3.02834212,118240.0,118230.0,2.89361001]
[1755210241446,2.77460071,118240.0,118230.0,3.29833479]
[1755210241641,2.77460071,118240.0,118230.0,2.49309479]
[1755210241842,2.77460071,118240.0,118230.0,3.25134604]
[1755210242043,2.77460071,118240.0,118230.0,2.44614604]
[1755210242242,2.36171071,118240.0,118230.0,3.31232604]
[1755210242443,2.36171071,118240.0,118230.0,2.50712604]
[1755210242743,2.36171071,118240.0,118230.0,3.31232604]
[1755210243351,2.34733293,118240.0,118230.0,3.31232604]
[1755210243546,2.34733293,118240.0,118230.0,2.90760126]
[1755210243740,2.34733293,118240.0,118230.0,3.31232604]
[1755210244250,2.34733293,118240.0,118230.0,3.16209167]
[1755210244944,2.34733293,118240.0,118230.0,3.19510167]
[1755210247554,2.34733293,118240.0,118230.0,2.79037689]
[1755210247740,2.34733293,118240.0,118230.0,2.47138359]
[1755210248058,2.34733293,118240.0,118230.0,2.57646729]
[1755210248252,2.34733293,118240.0,118230.0,2.96059217]
[1755210249752,2.34733293,118240.0,118230.0,3.02157217]
[1755210250347,2.34733293,118240.0,118230.0,2.61684739]
[1755210250555,2.34733293,118240.0,118230.0,2.96059217]
[1755210251253,2.34733293,118240.0,118230.0,1.66626359]
[1755210251553,2.34813293,118240.0,118230.0,2.47130359]
[1755210252455,2.83657441,118240.0,118230.0,2.47642729]
[1755210252649,2.83737441,118240.0,118230.0,2.37130359]
[1755210253054,2.83737441,118240.0,118230.0,2.47642729]
[1755210253847,2.43264963,118240.0,118230.0,2.37130359]
[1755210254456,2.83737441,118240.0,118230.0,1.30336359]
[1755210254755,2.83737441,118240.0,118230.0,1.97834359]
[1755210255546,2.83657441,118240.0,118230.0,1.97834359]
[1755210255756,2.83657441,118240.0,118230.0,1.98234359]
[1755210255957,2.43184963,118240.0,118230.0,1.98234359]
[1755210256265,2.83657441,118240.0,118230.0,1.98234359]
[1755210257250,2.83657441,118240.0,118230.0,2.09071659]
[1755210258353,2.83657441,118240.0,118230.0,1.98234359]
[1755210259157,2.43184963,118240.0,118230.0,1.98234359]
[1755210259460,2.83657441,118240.0,118230.0,1.98234359]
[1755210260554,2.43184963,118240.0,118230.0,1.98234359]
[1755210260755,2.34733293,118240.0,118230.0,2.08234359]
[1755210261265,2.34733293,118240.0,118230.0,1.98234359]
[1755210261662,2.34733293,118240.0,118230.0,2.08234359]
[1755210261959,2.34733293,118240.0,118230.0,2.21329359]
[1755210262752,2.34733293,118240.0,118230.0,1.76739217]
[1755210262957,2.34733293,118240.0,118230.0,2.29789739]
[1755210263157,2.34733293,118240.0,118230.0,2.80774587]
[1755210263353,2.17732739,118240.0,118230.0,2.80854587]
[1755210263559,1.99034739,118240.0,118230.0,3.07144587]
[1755210263763,1.86336739,118240.0,118230.0,3.07144587]
[1755210264364,1.86336739,118240.0,118230.0,2.96632217]
[1755210264758,1.86336739,118240.0,118230.0,3.07119563]
[1755210265659,1.86336739,118240.0,118230.0,2.96632217]
[1755210266864,1.85296739,118240.0,118230.0,2.96632217]
[1755210267167,1.85026739,118240.0,118230.0,2.96632217]
[1755210270167,1.85026739,118240.0,118230.0,2.96552217]
[1755210270368,1.96959739,118240.0,118230.0,2.96552217]
[1755210270667,2.08252399,118240.0,118230.0,2.08238359]
[1755210271174,1.99800739,118240.0,118230.0,2.18739234]
[1755210271367,2.08252399,118240.0,118230.0,2.08238359]
[1755210271568,1.99800739,118240.0,118230.0,2.08238359]
[1755210272870,1.99800739,118240.0,118230.0,2.11146359]
[1755210273070,1.99800739,118240.0,118230.0,2.18443359]
[1755210273870,1.99525998,118240.0,118230.0,2.18443359]
[1755210275168,1.99525998,118240.0,118230.0,2.22304359]
[1755210275464,1.99525998,118240.0,118230.0,2.73283958]
[1755210275671,1.84751998,118240.0,118230.0,2.71229217]
[1755210276373,1.84423998,118240.0,118230.0,2.71229217]
[1755210278178,1.84423998,118240.0,118230.0,2.85269217]
[1755210279083,1.72317977,118240.0,118230.0,2.85349217]
[1755210279578,1.71907977,118240.0,118230.0,2.85349217]
[1755210279776,1.71907977,118240.0,118230.0,3.00372654]
[1755210279976,1.60843977,118240.0,118230.0,3.00372654]
[1755210280581,1.60843977,118240.0,118230.0,2.85349217]
[1755210281782,1.60843977,118240.0,118230.0,2.44876739]
[1755210281977,1.60843977,118240.0,118230.0,2.85349217]
[1755210282783,1.60843977,118240.0,118230.0,2.71309217]
[1755210283379,1.3043802,118240.0,118230.0,3.28616895]
[1755210283685,1.27308924,118240.0,118230.0,3.54906895]
[1755210283874,1.27308924,118240.0,118230.0,3.69930332]
[1755210284178,1.11758582,118240.0,118230.0,3.69930332]
[1755210285784,1.11758582,118240.0,118230.0,3.69730332]
[1755210285985,1.11758582,118240.0,118230.0,3.69830332]
[1755210286784,1.11758582,118240.0,118230.0,3.29357854]
[1755210287484,1.08312582,118240.0,118230.0,3.29357854]
[1755210288079,1.02112582,118240.0,118230.0,3.29357854]
[1755210288687,1.02112582,118240.0,118230.0,3.12442654]
[1755210288978,1.00093582,118240.0,118230.0,3.12442654]
[1755210289183,1.00093582,118240.0,118230.0,3.52915132]
[1755210289485,0.99336582,118240.0,118230.0,3.52915132]
[1755210290673,0.97236582,118240.0,118230.0,3.52915132]
[1755210291681,0.95225582,118240.0,118230.0,3.12442654]
[1755210292887,0.95225582,118240.0,118230.0,3.26482654]
[1755210293277,0.93536511,118240.0,118230.0,3.26482654]
[1755210293578,0.93536511,118240.0,118230.0,3.11459217]
[1755210295178,0.93536511,118240.0,118230.0,3.31241619]
[1755210295588,0.96250511,118240.0,118230.0,3.31241619]
[1755210295786,1.08308511,118240.0,118230.0,3.31241619]
[1755210296785,1.18120511,118240.0,118230.0,3.31209619]
[1755210297089,1.15344511,118240.0,118230.0,3.31209619]
[1755210300993,1.12312511,118240.0,118230.0,3.31209619]
[1755210301892,1.1045978,118240.0,118230.0,3.71682097]
[1755210302093,1.1045978,118240.0,118230.0,3.31209619]
[1755210302496,0.8361978,118240.0,118230.0,3.71682097]
[1755210302794,0.7939378,118240.0,118230.0,3.57642097]
[1755210303098,0.7492178,118240.0,118230.0,3.57642097]
[1755210303491,0.7483578,118240.0,118230.0,3.17169619]
[1755210303793,0.9377578,118240.0,118230.0,3.17169619]
[1755210304788,0.9680778,118240.0,118230.0,3.17169619]
[1755210304989,0.9680778,118240.0,118230.0,3.17185609]
[1755210305993,0.9680778,118240.0,118230.0,2.76713131]
[1755210306291,0.9680778,118240.0,118230.0,3.17225619]
[1755210306487,0.9680778,118240.0,118230.0,2.97672239]
[1755210306688,0.9680778,118240.0,118230.0,2.17144239]
[1755210306889,0.9680778,118240.0,118230.0,2.24897239]
[1755210307090,0.9680778,118240.0,118230.0,3.05417239]
[1755210307388,0.9680778,118240.0,118230.0,2.69104761]
[1755210307593,0.9680778,118240.0,118230.0,2.14179239]
[1755210307897,0.9680778,118240.0,118230.0,2.54242761]
[1755210308195,0.9680778,118240.0,118230.0,2.94715239]
[1755210308396,0.9680778,118240.0,118230.0,2.68425239]
[1755210308592,0.9680778,118240.0,118230.0,2.48642837]
[1755210308799,0.9688778,118240.0,118230.0,2.11135359]
[1755210308986,0.9688778,118240.0,118230.0,2.48642837]
[1755210310797,0.9688778,118240.0,118230.0,2.51607837]
[1755210311192,0.9680778,118240.0,118230.0,2.51607837]
[1755210311697,0.9680778,118240.0,118230.0,2.59360837]
[1755210311895,0.9680778,118240.0,118230.0,1.27634359]
[1755210312100,0.9680778,118240.0,118230.0,2.08118359]
[1755210312300,0.9680778,118240.0,118230.0,2.63468837]
[1755210315192,0.9680778,118240.0,118230.0,2.22996359]
[1755210315393,0.9680778,118240.0,118230.0,2.63468837]
[1755210315593,0.9680778,118240.0,118230.0,2.73965367]
[1755210322197,0.7212178,118240.0,118230.0,2.73965367]
[1755210322395,0.8171778,118240.0,118230.0,2.73965367]
[1755210322601,0.9680778,118240.0,118230.0,2.73965367]
[1755210324098,0.7485878,118240.0,118230.0,2.73965367]
[1755210324401,0.9662178,118240.0,118230.0,2.33492889]
[1755210324603,0.9662178,118240.0,118230.0,2.73965367]
[1755210327805,0.9662178,118240.0,118230.0,2.63468837]
[1755210329207,0.9355278,118240.0,118230.0,2.63468837]
[1755210330302,0.7212178,118240.0,118230.0,2.71921147]
[1755210330503,0.6834551,118240.0,118230.0,3.12393625]
[1755210330707,0.65848585,118240.0,118230.0,3.12473625]
[1755210330902,0.40486586,118240.0,118230.0,3.12473625]
[1755210331308,0.14695586,118240.0,118230.0,3.38763625]
[1755210331510,0.11568586,118240.0,118230.0,3.38763625]
[1755210331905,0.08441586,118240.0,118230.0,3.38763625]
[1755210332106,0.03992586,118240.0,118230.0,3.38763625]
[1755210332409,0.03355769,118240.0,118230.0,3.38763625]
[1755210332599,0.03355769,118240.0,118230.0,3.58546027]
[1755210333808,0.00721769,118240.0,118230.0,3.58546027]
[1755210335611,0.21431,118260.0,118250.0,0.19567]
[1755210335909,0.21431,118260.0,118250.0,1.83844654]
[1755210337109,0.21531,118260.0,118250.0,1.83844654]
[1755210337505,0.246,118260.0,118250.0,1.90712051]
[1755210343116,0.246,118260.0,118250.0,3.07600051]
[1755210343514,0.03069,118260.0,118250.0,3.24501591]
[1755210343712,0.03069,118260.0,118250.0,3.16050711]
[1755210343906,0.03069,118260.0,118250.0,3.31029961]
[1755210344414,0.00909551,118260.0,118250.0,3.31029961]
[1755210344814,0.11569,118270.0,118250.0,3.16050711]
[1755210345016,0.21431,118270.0,118260.0,0.75867287]
[1755210345216,0.21431,118270.0,118260.0,0.85867287]
[1755210346117,0.21631,118270.0,118260.0,0.45394809]
[1755210346308,0.21631,118270.0,118260.0,0.85867287]
[1755210346514,0.247,118270.0,118260.0,0.85867287]
[1755210352116,0.247,118270.0,118260.0,1.12157287]
[1755210353124,0.247,118270.0,118260.0,1.01680478]
[1755210353619,0.247,118270.0,118260.0,1.12152896]
[1755210354426,0.247,118270.0,118260.0,1.01680478]
[1755210358316,0.247,118270.0,118260.0,0.75390478]
[1755210360627,0.247,118270.0,118260.0,1.25836342]
[1755210361322,0.247,118270.0,118260.0,1.3633655]
[1755210364524,0.07957,118270.0,118260.0,1.3633655]
[1755210364723,0.02937,118270.0,118260.0,0.45418208]
[1755210364930,0.25127,118270.0,118260.0,2.1673655]
[1755210365826,0.25127,118270.0,118260.0,1.3633655]
[1755210366023,0.79115621,118270.0,118260.0,0.91900208]
[1755210366230,0.25207,118270.0,118260.0,1.26859171]
[1755210366526,0.25207,118270.0,118260.0,1.33802171]
[1755210366721,0.3365647,118270.0,118260.0,0.88343]
[1755210366923,0.4210638,118270.0,118250.0,1.65881374]
[1755210367224,0.3346019,118260.0,118250.0,1.25455573]
[1755210367531,0.2493,118260.0,118250.0,2.73215582]
[1755210367827,0.2493,118260.0,118250.0,2.83215582]
[1755210368027,0.2493,118260.0,118250.0,2.58145582]
[1755210368222,0.3338019,118260.0,118250.0,2.47645374]
[1755210368421,0.5037299,118260.0,118250.0,2.17739045]
[1755210368628,0.7037299,118260.0,118250.0,1.35963045]
[1755210368820,1.10798791,118260.0,118250.0,2.17743045]
[1755210369018,1.10898791,118260.0,118250.0,2.17743045]
[1755210369233,1.10898791,118260.0,118250.0,2.07235573]
[1755210369726,1.10898791,118260.0,118250.0,1.25455573]
[1755210370032,1.10898791,118260.0,118250.0,1.88437573]
[1755210370232,1.10898791,118260.0,118250.0,1.87655573]
[1755210370423,1.10898791,118260.0,118250.0,1.79558573]
[1755210370624,1.10898791,118260.0,118250.0,1.78347573]
[1755210370819,0.4749199,118260.0,118250.0,1.78347573]
[1755210371030,0.4741199,118260.0,118250.0,1.89262573]
[1755210371926,0.4741199,118260.0,118250.0,1.81250573]
[1755210372132,0.87837791,118260.0,118250.0,1.81250573]
[1755210372829,0.87837791,118260.0,118250.0,1.89262573]
[1755210373025,0.4741199,118260.0,118250.0,1.93461573]
[1755210374140,0.4741199,118260.0,118250.0,2.00295178]
[1755210374436,0.87837791,118260.0,118250.0,2.00295178]
[1755210375132,0.4741199,118260.0,118250.0,2.00295178]
[1755210375331,0.4741199,118260.0,118250.0,2.08746038]
[1755210375332,0.2280519,118260.0,118250.0,2.08746038]
[1755210375933,0.2280519,118260.0,118250.0,2.00295178]
[1755210378740,0.63230991,118260.0,118250.0,2.00295178]
[1755210379638,0.2280519,118260.0,118250.0,2.00295178]
[1755210381248,0.1551919,118260.0,118250.0,2.00295178]
[1755210382129,0.1129019,118260.0,118250.0,2.40720979]
[1755210382739,0.1129019,118260.0,118250.0,2.00295178]
[1755210383147,0.1551919,118260.0,118250.0,2.00295178]
[1755210385750,0.55944991,118260.0,118250.0,2.00295178]
[1755210386543,0.1551919,118260.0,118250.0,2.00295178]
[1755210390852,0.72892791,118260.0,118250.0,1.95948178]
[1755210391648,0.72892791,118260.0,118250.0,2.00043178]
[1755210392654,0.55979991,118260.0,118250.0,2.00043178]
[1755210393454,0.1555419,118260.0,118250.0,2.00043178]
[1755210393649,0.55979991,118260.0,118250.0,2.00043178]
[1755210394151,0.0855019,118260.0,118250.0,2.00043178]
[1755210394447,0.27213184,118270.0,118260.0,0.3285817]
[1755210394653,0.27213184,118270.0,118260.0,0.24408]
[1755210395245,0.29943184,118270.0,118260.0,0.24408]
[1755210395446,0.34207184,118270.0,118260.0,0.24408]
[1755210395847,0.29943184,118270.0,118260.0,0.24408]
[1755210396057,0.74760985,118270.0,118260.0,0.24508]
[1755210396651,0.74760985,118270.0,118260.0,1.06172]
[1755210397254,0.74760985,118270.0,118260.0,1.02077]
[1755210397559,0.74760985,118270.0,118260.0,1.06172]
[1755210399954,0.34335184,118270.0,118260.0,1.06172]
[1755210400554,0.74760985,118270.0,118260.0,1.06172]
[1755210400961,0.34335184,118270.0,118260.0,1.06172]
[1755210401159,0.74760985,118270.0,118260.0,1.06172]
[1755210401462,0.34335184,118270.0,118260.0,1.06172]
[1755210402562,0.74760985,118270.0,118260.0,1.06172]
[1755210404766,0.27213184,118270.0,118260.0,1.46597801]
[1755210405357,0.29943184,118270.0,118260.0,1.06172]
[1755210405557,0.34207184,118270.0,118260.0,1.06172]
[1755210407263,0.74632985,118270.0,118260.0,1.07032]
[1755210407453,0.74760985,118270.0,118260.0,1.07032]
[1755210407658,0.74760985,118270.0,118260.0,1.07024]
[1755210408269,0.34335184,118270.0,118260.0,1.07024]
[1755210408567,0.74760985,118270.0,118260.0,0.87552]
[1755210408761,0.74840985,118270.0,118260.0,1.07024]
[1755210409566,0.74760985,118270.0,118260.0,1.07024]
[1755210410761,0.70368985,118270.0,118260.0,1.07024]
[1755210410961,0.74760985,118270.0,118260.0,1.07024]
[1755210411168,0.27213184,118270.0,118260.0,1.07024]
[1755210411763,0.29943184,118270.0,118260.0,1.07024]
[1755210411968,0.34207184,118270.0,118260.0,1.07024]
[1755210413167,0.34335184,118270.0,118260.0,1.07024]
[1755210413964,0.34207184,118270.0,118260.0,1.07024]
[1755210416165,0.27213184,118270.0,118260.0,1.07024]
[1755210416974,0.27213184,118270.0,118260.0,1.47449801]
[1755210417575,0.27213184,118270.0,118260.0,1.07024]
[1755210420075,0.33761184,118270.0,118260.0,1.07024]
[1755210420476,0.74186985,118270.0,118260.0,1.07024]
[1755210420676,0.33761184,118270.0,118260.0,1.07024]
[1755210420977,0.33761184,118270.0,118260.0,0.24508]
[1755210421176,0.33761184,118270.0,118260.0,1.0684]
[1755210422677,0.74186985,118270.0,118260.0,1.0684]
[1755210426781,0.74186985,118270.0,118260.0,1.01483]
[1755210430483,0.74186985,118270.0,118260.0,1.06554]
[1755210434186,0.74186985,118270.0,118260.0,0.9977]
[1755210434387,0.74186985,118270.0,118260.0,0.17438]
[1755210434578,0.74186985,118270.0,118260.0,0.99578]
[1755210435572,0.74186985,118270.0,118260.0,0.10107]
[1755210435886,0.74186985,118270.0,118260.0,0.92239]
[1755210436391,0.74186985,118270.0,118260.0,0.9957]
[1755210438380,0.91178185,118270.0,118260.0,0.85111]
[1755210438585,1.41178185,118270.0,118260.0,0.82232]
[1755210438884,1.41178185,118270.0,118260.0,0.85214]
[1755210439777,1.41278185,118270.0,118260.0,0.85114]
[1755210440085,1.41378185,118270.0,118260.0,0.85114]
[1755210440677,1.44386985,118270.0,118260.0,0.82132]
[1755210440879,0.1499812,118260.0,118250.0,0.09815605]
[1755210441079,0.8721609,118260.0,118250.0,0.85138]
[1755210441276,1.0412889,118260.0,118250.0,0.85138]
[1755210442481,1.0412889,118260.0,118250.0,0.85238]
[1755210442687,1.0412889,118260.0,118250.0,0.92023602]
[1755210443178,1.2412889,118260.0,118250.0,0.7813743]
[1755210443573,0.1103483,118250.0,118240.0,0.87065]
[1755210443788,0.55424631,118250.0,118240.0,0.94396]
[1755210443986,0.72339032,118250.0,118240.0,0.8511]
[1755210444286,1.12764833,118250.0,118240.0,0.8511]
[1755210444678,0.72339032,118250.0,118240.0,0.8220787]
[1755210444881,0.77120032,118250.0,118240.0,0.7847469]
[1755210445080,0.77120032,118250.0,118240.0,0.7867469]
[1755210445581,0.77120032,118250.0,118240.0,0.9333369]
[1755210446785,1.27120032,118250.0,118240.0,0.9631669]
[1755210447188,1.29377672,118250.0,118240.0,1.03233359]
[1755210447790,1.29377672,118250.0,118240.0,1.07161359]
[1755210448491,1.20632672,118250.0,118240.0,1.07161359]
[1755210448681,0.72407032,118250.0,118240.0,1.07161359]
[1755210448885,0.74411032,118250.0,118240.0,1.07161359]
[1755210449280,0.77188032,118250.0,118240.0,1.07161359]
[1755210452788,0.77188032,118250.0,118240.0,0.31320669]
[1755210452986,0.77188032,118250.0,118240.0,1.13592669]
[1755210453897,0.48876631,118250.0,118240.0,1.13592669]
[1755210454493,0.48876631,118250.0,118240.0,1.15877969]
[1755210455298,0.48876631,118250.0,118240.0,1.13592669]
[1755210456300,0.53516631,118250.0,118240.0,1.13592669]
[1755210456599,0.77185032,118250.0,118240.0,1.13464669]
[1755210456791,0.77185032,118250.0,118240.0,1.13452669]
[1755210456792,1.17610833,118250.0,118240.0,1.13452669]
[1755210458300,0.77185032,118250.0,118240.0,1.13452669]
[1755210458700,0.57496631,118250.0,118240.0,1.13452669]
[1755210459000,0.0845083,118250.0,118240.0,1.13452669]
[1755210459199,0.48876631,118250.0,118240.0,1.13452669]
[1755210461794,0.0845083,118250.0,118240.0,1.13452669]
[1755210461997,0.48876631,118250.0,118240.0,1.13452669]
[1755210463802,0.0845083,118250.0,118240.0,1.21904209]
[1755210464102,0.0845083,118250.0,118240.0,1.13452669]
[1755210465205,0.48876631,118250.0,118240.0,1.13452669]
[1755210465405,0.0845083,118250.0,118240.0,1.13452669]
[1755210465605,0.48876631,118250.0,118240.0,1.13452669]
[1755210466500,0.0845083,118250.0,118240.0,1.13452669]
[1755210466707,0.48876631,118250.0,118240.0,1.13452669]
[1755210467093,0.0845083,118250.0,118240.0,1.13452669]
[1755210467907,0.48876631,118250.0,118240.0,1.13452669]
[1755210468499,0.55492631,118250.0,118240.0,1.13452669]
[1755210474912,0.57386631,118250.0,118240.0,1.13452669]
[1755210478313,0.55382631,118250.0,118240.0,1.13452669]
[1755210478617,0.51512631,118250.0,118240.0,1.13452669]
[1755210479516,0.55382631,118250.0,118240.0,1.13452669]
[1755210483419,0.51512631,118250.0,118240.0,1.13452669]
[1755210485723,0.48876631,118250.0,118240.0,1.13452669]
[1755210486919,0.57411631,118250.0,118240.0,1.13452669]
[1755210489920,0.55453631,118250.0,118240.0,1.13452669]
[1755210490114,0.0845083,118250.0,118240.0,1.13452669]
[1755210490522,0.48876631,118250.0,118240.0,1.13452669]
[1755210492515,0.0845083,118250.0,118240.0,1.13452669]
[1755210492716,0.48876631,118250.0,118240.0,1.13452669]
[1755210495020,0.51583631,118250.0,118240.0,1.13452669]
[1755210495214,0.55453631,118250.0,118240.0,1.13452669]
[1755210498815,0.1115783,118250.0,118240.0,1.13452669]
[1755210500330,0.1502783,118250.0,118240.0,1.13452669]
[1755210501129,0.57411631,118250.0,118240.0,1.13452669]
[1755210502228,0.48876631,118250.0,118240.0,1.13452669]
[1755210505724,0.51558631,118250.0,118240.0,1.13452669]
[1755210506123,0.55571631,118250.0,118240.0,1.13452669]
[1755210508933,0.1514583,118250.0,118240.0,1.13452669]
[1755210509132,0.48876631,118250.0,118240.0,1.13452669]
[1755210509332,0.2723506,118260.0,118250.0,0.22649]
[1755210509632,0.1878429,118260.0,118250.0,0.4109982]
[1755210509830,0.1878429,118260.0,118250.0,0.32649]
[1755210511227,0.1878429,118260.0,118250.0,1.03629]
[1755210512430,0.1690089,118260.0,118250.0,1.13629]
[1755210512736,0.2534962,118270.0,118260.0,0.32649]
[1755210513132,0.65775421,118270.0,118260.0,0.22649]
[1755210513436,0.88918421,118270.0,118260.0,0.22649]
[1755210513940,0.4849262,118270.0,118260.0,0.22649]
[1755210514233,0.88918421,118270.0,118260.0,0.22649]
[1755210514445,0.2534962,118270.0,118260.0,0.22649]
[1755210514634,0.4356762,118270.0,118260.0,0.22649]
[1755210515232,0.4849262,118270.0,118260.0,0.22649]
[1755210515432,0.4849262,118270.0,118260.0,0.24454292]
[1755210519036,0.88918421,118270.0,118260.0,0.24454292]
[1755210520340,0.88918421,118270.0,118260.0,0.82761292]
[1755210522039,0.88918421,118270.0,118260.0,1.05410292]
[1755210525142,0.88918421,118270.0,118260.0,0.82761292]
[1755210525339,0.88918421,118270.0,118260.0,0.87362292]
[1755210525543,0.88918421,118270.0,118260.0,1.01530292]
[1755210525845,0.88918421,118270.0,118260.0,1.05410292]
[1755210526050,0.4849262,118270.0,118260.0,1.05410292]
[1755210526246,0.88918421,118270.0,118260.0,1.05410292]
[1755210528052,0.88918421,118270.0,118260.0,1.05310292]
[1755210529753,0.4849262,118270.0,118260.0,1.05310292]
[1755210530242,0.88918421,118270.0,118260.0,1.05310292]
[1755210535252,0.4355662,118270.0,118260.0,1.05310292]
[1755210535556,0.88677421,118270.0,118260.0,1.05310292]
[1755210545364,0.88677421,118270.0,118260.0,1.05246292]
[1755210545860,0.88677421,118270.0,118260.0,1.03541]
[1755210546466,0.88677421,118270.0,118260.0,0.22649]
[1755210546671,0.88677421,118270.0,118260.0,1.03541]
[1755210551068,0.4825162,118270.0,118260.0,1.03541]
[1755210551272,0.88677421,118270.0,118260.0,1.03541]
[1755210552258,0.4825162,118270.0,118260.0,1.03541]
[1755210552571,0.88677421,118270.0,118260.0,1.03541]
[1755210561774,0.4825162,118270.0,118260.0,1.03541]
[1755210561975,0.88677421,118270.0,118260.0,1.03541]
[1755210567678,0.4825162,118270.0,118260.0,1.03541]
[1755210567974,0.88677421,118270.0,118260.0,1.03541]
[1755210568778,0.93739539,118270.0,118260.0,1.03541]
[1755210576780,0.93739539,118270.0,118260.0,1.49028919]
[1755210579889,0.4825162,118270.0,118260.0,1.49028919]
[1755210580089,0.93739539,118270.0,118260.0,1.49028919]
[1755210581188,0.93739539,118270.0,118260.0,1.03417]
[1755210584696,0.93739539,118270.0,118260.0,1.48904919]
[1755210585095,0.80155539,118270.0,118260.0,1.48904919]
[1755210585286,0.2534962,118270.0,118260.0,1.48904919]
[1755210585595,0.0844971,118270.0,118260.0,2.12842938]
[1755210585892,0.0844971,118270.0,118260.0,2.2335041]
[1755210586391,0.0844971,118270.0,118260.0,1.32374572]
[1755210586589,0.0844971,118270.0,118260.0,2.2335041]
[1755210586793,0.0844971,118270.0,118260.0,1.72893735]
[1755210587998,0.0558171,118270.0,118260.0,1.72893735]
[1755210590095,0.10299579,118280.0,118260.0,1.76354605]
[1755210590291,0.10299429,118280.0,118270.0,0.81618553]
[1755210591597,0.10299429,118280.0,118270.0,0.83195803]
[1755210591793,0.01850749,118280.0,118270.0,0.83195803]
[1755210592991,0.01850749,118280.0,118270.0,0.83295803]
[1755210593192,0.1689672,118290.0,118280.0,0.2498368]
[1755210593499,0.0844823,118290.0,118280.0,1.52317843]
[1755210593700,0.0844823,118290.0,118280.0,1.1189868]
[1755210594000,0.0844823,118290.0,118280.0,1.52317843]
[1755210598798,0.0844823,118290.0,118280.0,1.1189868]
[1755210598997,0.0844823,118290.0,118280.0,1.52317843]
[1755210599302,0.0844823,118290.0,118280.0,1.43869163]
[1755210600397,0.1732723,118290.0,118280.0,0.2275]
[1755210600599,0.70927393,118290.0,118280.0,1.00728]
[1755210600904,0.70927393,118290.0,118280.0,0.16127]
[1755210601202,0.3042823,118290.0,118280.0,0.96779]
[1755210601404,0.70847393,118290.0,118280.0,0.20002]
[1755210601701,0.70847393,118290.0,118280.0,1.0065]
[1755210602297,0.304287,118280.0,118270.0,0.10382905]
[1755210602494,0.70847863,118280.0,118270.0,0.97866905]
[1755210602693,0.70847863,118280.0,118270.0,1.01741905]
[1755210603195,0.304287,118280.0,118270.0,1.01741905]
[1755210603403,0.267087,118280.0,118270.0,1.04364905]
[1755210603700,0.267087,118280.0,118270.0,1.04464905]
[1755210603899,0.304287,118280.0,118270.0,1.04464905]
[1755210604095,0.084487,118280.0,118270.0,1.04464905]
[1755210604507,0.084487,118280.0,118270.0,1.44884068]
[1755210604797,0.084487,118280.0,118270.0,1.53333488]
[1755210605105,0.112027,118280.0,118270.0,1.53333488]
[1755210605601,0.084487,118280.0,118270.0,1.63333488]
[1755210606396,0.02754,118310.0,118290.0,0.1253667]
[1755210606706,0.3654235,118310.0,118300.0,1.25761163]
[1755210606907,0.4360135,118310.0,118300.0,0.8794]
[1755210607103,0.4732135,118310.0,118300.0,0.8794]
[1755210607706,0.4742135,118310.0,118300.0,0.8794]
[1755210608001,0.87840513,118310.0,118300.0,0.8794]
[1755210608201,0.4742135,118310.0,118300.0,0.87932]
[1755210608408,0.87840513,118310.0,118300.0,0.87932]
[1755210608808,0.4742135,118310.0,118300.0,0.87932]
[1755210609111,0.87840513,118310.0,118300.0,0.87932]
[1755210609310,0.87840513,118310.0,118300.0,0.02598]
[1755210609606,0.87840513,118310.0,118300.0,0.83206]
[1755210609804,0.4742135,118310.0,118300.0,0.90429041]
[1755210610107,0.4742135,118310.0,118300.0,0.94125041]
[1755210610402,0.4762135,118310.0,118300.0,0.94754041]
[1755210611415,0.4390135,118310.0,118300.0,1.35173204]
[1755210611711,0.4390135,118310.0,118300.0,0.94754041]
[1755210611896,0.4390135,118310.0,118300.0,1.35173204]
[1755210612094,0.4762135,118310.0,118300.0,0.94754041]
[1755210613204,0.4762135,118310.0,118300.0,0.94730041]
[1755210613400,0.88040513,118310.0,118300.0,0.94730041]
[1755210614106,0.88040513,118310.0,118300.0,0.91034041]
[1755210614314,0.88040513,118310.0,118300.0,0.87410041]
[1755210615012,0.88040513,118310.0,118300.0,0.94726041]
[1755210615013,0.4762135,118310.0,118300.0,0.94726041]
[1755210615705,0.4390135,118310.0,118300.0,1.35145204]
[1755210616309,0.2839535,118310.0,118300.0,1.35145204]
[1755210619315,0.3502235,118310.0,118300.0,1.35145204]
[1755210619816,0.01737069,118320.0,118310.0,0.03696]
[1755210620008,0.01737069,118320.0,118310.0,0.65401723]
[1755210620308,0.280904,118330.0,118310.0,0.82294603]
[1755210620510,0.280904,118330.0,118320.0,1.24764163]
[1755210620711,0.347174,118330.0,118320.0,1.24764163]
[1755210621718,0.350174,118330.0,118320.0,1.24764163]
[1755210622111,0.003,118330.0,118320.0,1.34926447]